lending/lending_fUSD_20250917
["ID","MTS","AMOUNT","RATE_DAILY","PERIOD"]
[385944641,1758143440888,-2071.420839,0.00021917,2]
[385944642,1758143440897,-221.134708,0.00021917,2]
[385944643,1758143440907,-214.369208,0.00021917,2]
[385944644,1758143440916,-217.360132,0.00021917,2]
[385944645,1758143440927,-151.0,0.00021917,2]
[385944646,1758143440936,-217.360132,0.00021917,2]
[385944650,1758143441250,-574.969999,0.00021917,2]
[385944651,1758143441260,-217.360132,0.00021917,2]
[385944652,1758143441269,-151.0,0.00021917,2]
[385944653,1758143441278,-574.969999,0.00021917,2]
[385944654,1758143441287,-151.0,0.00021917,2]
[385944655,1758143441296,-217.360132,0.00021917,2]
[385944656,1758143441306,-574.969999,0.00021917,2]
[385944657,1758143441315,-151.0,0.00021917,2]
[385944658,1758143441324,-151.0,0.00021917,2]
[385944659,1758143441333,-574.969999,0.00021917,2]
[385944660,1758143441343,-151.0,0.00021917,2]
[385944661,1758143441352,-151.0,0.00021917,2]
[385944662,1758143441361,-151.0,0.00021917,2]
[385944663,1758143441370,-151.0,0.00021917,2]
[385944664,1758143441379,-151.0,0.00021917,2]
[385944665,1758143441389,-151.0,0.00021917,2]
[385944666,1758143441398,-151.0,0.00021917,2]
[385944667,1758143441407,-2006.91,0.00021918,2]
[385944668,1758143441416,-10272.10520533,0.00021934,2]
[385944669,1758143441426,-151.0,0.00021934,7]
[385944670,1758143441435,-151.0,0.00021934,7]
[385944671,1758143441444,-151.0,0.00021934,7]
[385944672,1758143441453,-151.0,0.00021934,7]
[385944673,1758143441462,-185.51,0.00021948,2]
[385944674,1758143441471,-185.51,0.00021958,2]
[385944675,1758143441480,-156.182362,0.00021958,7]
[385944676,1758143441490,-151.0,0.00021958,7]
[385944677,1758143441499,-151.0,0.00021958,7]
[385944678,1758143441508,-151.0,0.00021958,7]
[385944679,1758143441517,-151.0,0.00021958,7]
[385944680,1758143441526,-151.0,0.00021958,7]
[385944681,1758143441536,-151.0,0.00021958,7]
[385944682,1758143441545,-224.437812,0.00021958,7]
[385944683,1758143441555,-949.060835,0.00021958,7]
[385944684,1758143441565,-949.060835,0.00021958,7]
[385944685,1758143441574,-949.060835,0.00021958,7]
[385944686,1758143441584,-949.060835,0.00021958,7]
[385944687,1758143441593,-151.0,0.00021958,7]
[385944688,1758143441603,-157.50211,0.00021958,7]
[385944689,1758143441612,-3502.572629,0.00021958,7]
[385944690,1758143441623,-3502.572629,0.00021958,7]
[385944691,1758143441632,-155.707678,0.00021958,7]
[385944692,1758143441642,-151.0,0.00021958,7]
[385944693,1758143441651,-3502.572629,0.00021958,7]
[385944694,1758143441661,-3502.572629,0.00021958,7]
[385944695,1758143441670,-1815.11644,0.00021958,7]
[385944696,1758143441679,-1815.11644,0.00021958,7]
[385944697,1758143441688,-1815.11644,0.00021958,7]
[385944698,1758143441698,-1815.11644,0.00021958,7]
[385944699,1758143441707,-2071.420839,0.00021958,7]
[385944700,1758143441716,-151.0,0.00021958,7]
[385944701,1758143441726,-2071.420839,0.00021958,7]
[385944702,1758143441735,-2071.420839,0.00021958,7]
[385944703,1758143441745,-2071.420839,0.00021958,7]
[385944704,1758143441755,-217.360132,0.00021958,7]
[385944705,1758143441765,-151.0,0.00021958,7]
[385944706,1758143441774,-217.360132,0.00021958,7]
[385944707,1758143441784,-574.969999,0.00021958,7]
[385944708,1758143441793,-217.360132,0.00021958,7]
[385944709,1758143441802,-159.748675,0.00021958,7]
[385944710,1758143441812,-574.969999,0.00021958,7]
[385944711,1758143441821,-151.0,0.00021958,7]
[385944712,1758143441831,-217.360132,0.00021958,7]
[385944713,1758143441840,-574.969999,0.00021958,7]
[385944714,1758143441850,-183.74458,0.00021958,7]
[385944715,1758143441859,-151.0,0.00021958,7]
[385944716,1758143441869,-574.969999,0.00021958,7]
[385944717,1758143441881,-151.0,0.00021958,7]
[385944718,1758143441890,-185.51,0.00021959,2]
[385944719,1758143441900,-478.77334497,0.00021961,2]
[385944720,1758143441909,-400.0,0.00021961,2]
[385944721,1758143441919,-400.0,0.00021961,2]
[385944722,1758143441929,-400.0,0.00021961,2]
[385944723,1758143441938,-400.0,0.00021961,2]
[385944724,1758143441949,-378.91118988,0.00021961,2]
[385944725,1758143441959,-400.0,0.00021961,2]
[385944726,1758143441968,-854.64,0.00021961,2]
[385944727,1758143441978,-400.0,0.00021961,2]
[385944728,1758143441987,-400.0,0.00021961,2]
[385944729,1758143441996,-400.0,0.00021961,2]
[385944730,1758143442006,-400.0,0.00021961,2]
[385944731,1758143442015,-300.81,0.00021961,2]
[385944732,1758143442025,-400.0,0.00021961,2]
[385944733,1758143442035,-400.0,0.00021961,2]
[385944734,1758143442044,-400.0,0.00021961,2]
[385944735,1758143442054,-400.0,0.00021961,2]
[385944736,1758143442063,-273.64,0.00021961,2]
[385944737,1758143442072,-175.021681,0.00021961,7]
[385944738,1758143442082,-400.0,0.00021961,2]
[385944739,1758143442091,-164.70992172,0.00021961,2]
[385944772,1758143446303,-352.92363,0.00021762,2]
[385944773,1758143446314,-38.0442572,0.00021878,2]
[385944774,1758143446326,-169.14796527,0.00021878,2]
[385944775,1758143446335,-500.0,0.00021878,2]
[385944776,1758143446346,-86.15203463,0.00021878,2]
[385944777,1758143470730,5513.0,0.000179,5]
[385944781,1758143600818,500.0,0.00030133,120]
[385944783,1758143952911,152.4562937,0.000202,4]
[385944784,1758144002905,6215.91170643,0.00019395,2]
[385944785,1758144003185,5000.0,0.00019395,2]
[385944797,1758144308177,3784.08829357,0.0002,2]
[385944798,1758144308708,15000.0,0.0002,2]
[385944799,1758144308730,15000.0,0.0002,2]
[385944800,1758144308752,15000.0,0.0002,2]
[385944801,1758144308775,15000.0,0.0002,2]
[385944802,1758144308799,15000.0,0.0002,2]
[385944803,1758144308822,15000.0,0.0002,2]
[385944804,1758144308846,15000.0,0.0002,2]
[385944805,1758144308868,15000.0,0.0002,2]
[385944806,1758144308890,15000.0,0.0002,2]
[385944807,1758144308912,15000.0,0.0002,2]
[385944808,1758144308934,8015.56319087,0.0002,2]
[385944826,1758144588905,154.13,0.00010255,2]
[385944827,1758144589469,154.13,0.00011964,2]
[385944828,1758144589517,154.13,0.00013673,2]
[385944829,1758144589735,154.13,0.00015382,2]
[385944830,1758144589947,154.13,0.00017091,2]
[385944831,1758144590368,154.13,0.00018801,2]
[385944837,1758144632364,-1425.0,0.00020092,2]
[385944838,1758144632374,-23.39859999,0.00020418,2]
[385944839,1758144632386,-127.22452001,0.00020418,2]
[385944840,1758144632395,-151.0,0.00020436,2]
[385944841,1758144632405,-151.0,0.00020438,2]
[385944842,1758144632416,-154.13,0.0002051,2]
[385944843,1758144632426,-250.0,0.00020562,2]
[385944844,1758144632435,-337.93,0.00020664,2]
[385944848,1758144632783,-926.79,0.00020681,2]
[385944852,1758144632815,-200.0,0.00020725,2]
[385944854,1758144632825,-9.55045279,0.00020822,2]
[385944855,1758144632841,-273.66954721,0.00020822,2]
[385944856,1758144632850,-30.28216463,0.00020888,2]
[385944857,1758144632863,-868.34321733,0.00020888,2]
[385944858,1758144632911,-98.65461804,0.00020888,2]
[385944859,1758144632921,-183.65,0.00020988,2]
[385944860,1758144632930,-666.0,0.00020988,3]
[385944861,1758144632940,-79.34023214,0.00021274,2]
[385944862,1758144632951,-1120.65976786,0.00021274,2]
[385944863,1758144632961,-198.0,0.00021274,2]
[385944864,1758144632970,-300.0,0.00021274,2]
[385944865,1758144632980,-4018.82241682,0.00021275,2]
[385944866,1758144633230,-1764.73507591,0.00021275,2]
[385944867,1758144633244,-2782.19806638,0.00021275,2]
[385944868,1758144633254,-248.71531821,0.00021275,2]
[385944869,1758144633265,-713.19603696,0.00021287,2]
[385944870,1758144633281,-2386.80396304,0.00021287,2]
[385944871,1758144633290,-168.0,0.00021301,2]
[385944872,1758144633300,-8882.6885148,0.0002133,2]
[385944873,1758144633309,-757.0,0.00021354,2]
[385944874,1758144633319,-9211.34798985,0.00021385,2]
[385944875,1758144633328,-168.0,0.00021388,2]
[385944876,1758144633338,-168.0,0.00021396,2]
[385944877,1758144633348,-165.7,0.00021424,2]
[385944878,1758144633357,-9552.16786547,0.0002144,2]
[385944879,1758144633367,-9905.5980765,0.00021495,2]
[385944880,1758144633377,-264.0,0.000215,2]
[385944881,1758144633387,-1000.0,0.000215,7]
[385944882,1758144633396,-151.0,0.00021547,2]
[385944883,1758144633406,-10272.10520533,0.0002155,2]
[385944884,1758144633416,-2000.0,0.000216,7]
[385944885,1758144633425,-10652.17309792,0.00021605,2]
[385944886,1758144633435,-168.0,0.00021645,2]
[385944887,1758144633444,-1000.0,0.00021647,2]
[385944888,1758144633454,-11046.30350255,0.0002166,2]
[385944889,1758144633463,-3000.0,0.000217,7]
[385944890,1758144633473,-11455.01673214,0.00021715,2]
[385944891,1758144633483,-7000.0,0.0002174,2]
[385944892,1758144633493,-500.0,0.00021745,2]
[385944893,1758144633503,-1000.0,0.00021758,2]
[385944894,1758144633512,-2500.0,0.00021758,2]
[385944895,1758144633522,-13262.53673299,0.00021765,2]
[385944896,1758144633531,-13084.36474689,0.00021766,2]
[385944897,1758144633540,-198.72189785,0.00021767,2]
[385944898,1758144633549,-581.49522552,0.00021768,2]
[385944899,1758144633559,-162.4017061,0.00021768,2]
[385944900,1758144633568,-151.0,0.00021768,2]
[385944901,1758144633578,-151.0,0.00021768,2]
[385944902,1758144633587,-2109.093577,0.00021768,2]
[385944903,1758144633596,-2109.093577,0.00021768,2]
[385944904,1758144633606,-151.0,0.00021768,2]
[385944905,1758144633616,-2109.093577,0.00021768,2]
[385944906,1758144633626,-151.0,0.00021768,2]
[385944907,1758144633635,-237.538,0.00021768,2]
[385944908,1758144633645,-237.538,0.00021768,2]
[385944909,1758144633655,-151.0,0.00021768,2]
[385944910,1758144633664,-2109.093577,0.00021768,2]
[385944911,1758144633674,-151.0,0.00021768,2]
[385944912,1758144633683,-237.538,0.00021768,2]
[385944913,1758144633693,-237.538,0.00021768,2]
[385944914,1758144633702,-2109.093577,0.00021768,2]
[385944915,1758144633712,-2109.093577,0.00021768,2]
[385944916,1758144633722,-161.285051,0.00021768,2]
[385944917,1758144633732,-237.538,0.00021768,2]
[385944918,1758144633741,-237.538,0.00021768,2]
[385944919,1758144633752,-2109.093577,0.00021768,2]
[385944920,1758144633761,-2109.093577,0.00021768,2]
[385944921,1758144633771,-237.538,0.00021768,2]
[385944922,1758144633780,-237.538,0.00021768,2]
[385944923,1758144633790,-1089.069864,0.00021768,2]
[385944924,1758144633799,-1089.069864,0.00021768,2]
[385944925,1758144633808,-1089.069864,0.00021768,2]
[385944926,1758144633818,-1089.069864,0.00021768,2]
[385944927,1758144633827,-1089.069864,0.00021768,2]
[385944928,1758144633837,-1089.069864,0.00021768,2]
[385944929,1758144633847,-1089.069864,0.00021768,2]
[385944930,1758144633856,-1089.069864,0.00021768,2]
[385944931,1758144633868,-1335.635557,0.00021768,2]
[385944932,1758144633877,-1335.635557,0.00021768,2]
[385944933,1758144633888,-1335.635557,0.00021768,2]
[385944934,1758144633897,-1335.635557,0.00021768,2]
[385944935,1758144633907,-1335.635557,0.00021768,2]
[385944936,1758144633916,-1335.635557,0.00021768,2]
[385944937,1758144633925,-1335.635557,0.00021768,2]
[385944938,1758144633935,-1335.635557,0.00021768,2]
[385944939,1758144633945,-151.0,0.00021768,2]
[385944940,1758144633954,-151.0,0.00021768,2]
[385944941,1758144633963,-151.0,0.00021768,2]
[385944942,1758144633973,-151.0,0.00021768,2]
[385944943,1758144633982,-151.0,0.00021768,2]
[385944944,1758144633992,-151.0,0.00021768,2]
[385944945,1758144634001,-151.0,0.00021768,2]
[385944946,1758144634011,-151.0,0.00021768,2]
[385944947,1758144634021,-262.334226,0.00021768,2]
[385944948,1758144634030,-151.0,0.00021768,2]
[385944949,1758144634039,-151.0,0.00021768,2]
[385944950,1758144634048,-233.23037456,0.00021769,2]
[385944951,1758144634057,-500.0,0.00021769,2]
[385944952,1758144634067,-500.0,0.00021769,2]
[385944953,1758144634076,-500.0,0.00021769,2]
[385944954,1758144634086,-500.0,0.00021769,2]
[385944955,1758144634095,-766.75211805,0.00021769,2]
[385944956,1758144634104,-500.0,0.00021769,2]
[385944957,1758144634116,-500.0,0.00021769,2]
[385944958,1758144634126,-766.75211805,0.00021769,2]
[385944959,1758144634135,-305.53123113,0.00021769,2]
[385944960,1758144634145,-500.0,0.00021769,2]
[385944961,1758144634155,-221.86180384,0.00021769,2]
[385944962,1758144634165,-766.75211805,0.00021769,2]
[385944963,1758144634175,-500.0,0.00021769,2]
[385944964,1758144634187,-766.75211805,0.00021769,2]
[385944965,1758144634199,-500.0,0.00021769,2]
[385944966,1758144634208,-766.75211805,0.00021769,2]
[385944967,1758144634218,-270.53957257,0.00021769,2]
[385944968,1758144634228,-500.0,0.00021769,2]
[385944969,1758144634237,-766.75211805,0.00021769,2]
[385944970,1758144634247,-766.75211805,0.00021769,2]
[385944971,1758144634256,-500.0,0.00021769,2]
[385944972,1758144634271,-379.57303491,0.00021769,2]
[385944973,1758144634286,-500.0,0.00021769,2]
[385944974,1758144634296,-766.75211805,0.00021769,2]
[385944975,1758144634307,-500.0,0.00021769,2]
[385944976,1758144634317,-766.75211805,0.00021769,2]
[385944977,1758144634327,-500.0,0.00021769,2]
[385944978,1758144634337,-766.75211805,0.00021769,2]
[385944979,1758144634348,-500.0,0.00021769,2]
[385944980,1758144634360,-766.75211805,0.00021769,2]
[385944981,1758144634371,-500.0,0.00021769,2]
[385944982,1758144634381,-766.75211805,0.00021769,2]
[385944983,1758144634391,-766.75211805,0.00021769,2]
[385944984,1758144634402,-766.75211805,0.00021769,2]
[385944985,1758144634413,-766.75211805,0.00021769,2]
[385944986,1758144634424,-500.0,0.00021769,2]
[385944987,1758144634434,-766.75211805,0.00021769,2]
[385944988,1758144634444,-766.75211805,0.00021769,2]
[385944989,1758144634455,-766.75211805,0.00021769,2]
[385944990,1758144634465,-654.30173271,0.00021769,2]
[385944994,1758144638331,-151.0,0.00021768,2]
[385944995,1758144638341,-151.0,0.00021768,2]
[385944996,1758144638350,-859.19670733,0.00021769,2]
[385944997,1758144638359,-1827.27219631,0.0002177,2]
[385944998,1758144638372,-1521.26717773,0.0002177,2]
[385944999,1758144638439,-6486.96554792,0.0002177,2]
[385945000,1758144638450,-508.63933805,0.0002177,2]
[385945007,1758144640588,-1534.70809122,0.0002177,2]
[385945008,1758144640597,-892.30524375,0.00021779,2]
[385945009,1758144640607,-151.0,0.00021779,2]
[385945010,1758144640618,-151.0,0.00021779,2]
[385945011,1758144640627,-151.0,0.00021779,2]
[385945012,1758144640636,-2905.19596503,0.000218,7]
[385945013,1758144640647,-1094.80403497,0.000218,7]
[385945014,1758144640656,-12318.36988823,0.00021825,2]
[385945015,1758144640665,-322.6107,0.00021844,2]
[385945016,1758144640674,-151.0,0.00021844,2]
[385945017,1758144640683,-151.0,0.00021844,2]
[385945018,1758144640692,-151.0,0.00021844,2]
[385945019,1758144640701,-151.0,0.00021844,2]
[385945020,1758144640710,-151.0,0.00021844,2]
[385945021,1758144640719,-151.0,0.00021844,2]
[385945022,1758144640728,-151.0,0.00021844,2]
[385945023,1758144640737,-151.0,0.00021844,2]
[385945024,1758144640746,-151.0,0.00021844,2]
[385945025,1758144640756,-151.0,0.00021844,2]
[385945026,1758144640764,-151.0,0.00021844,2]
[385945027,1758144640773,-279.17368307,0.00021844,2]
[385945028,1758144640783,-168.0,0.0002185,2]
[385945029,1758144640791,-1848.61678651,0.00021854,2]
[385945030,1758144640801,-587.79216758,0.00021857,2]
[385945031,1758144640812,-82023.2550512,0.00021857,2]
[385945032,1758144640821,-279.43683,0.00021858,2]
[385945033,1758144640831,-151.0,0.00021858,2]
[385945034,1758144640841,-151.0,0.00021858,2]
[385945035,1758144640850,-154.174114,0.00021858,2]
[385945036,1758144640859,-151.0,0.00021858,2]
[385945037,1758144640870,-160.480939,0.00021858,2]
[385945038,1758144640880,-2109.093577,0.00021858,2]
[385945039,1758144640889,-151.0,0.00021858,2]
[385945040,1758144640898,-237.538,0.00021858,2]
[385945041,1758144640908,-2109.093577,0.00021858,2]
[385945042,1758144640918,-237.538,0.00021858,2]
[385945043,1758144640927,-2109.093577,0.00021858,2]
[385945044,1758144640936,-237.538,0.00021858,2]
[385945045,1758144640946,-2109.093577,0.00021858,2]
[385945046,1758144640955,-237.538,0.00021858,2]
[385945047,1758144640964,-1089.069864,0.00021858,2]
[385945048,1758144640973,-1089.069864,0.00021858,2]
[385945049,1758144640982,-1089.069864,0.00021858,2]
[385945050,1758144640991,-1089.069864,0.00021858,2]
[385945051,1758144641000,-1335.635557,0.00021858,2]
[385945052,1758144641009,-1064.21388661,0.00021858,2]
[385945053,1758144641020,-271.42167039,0.00021858,2]
[385945054,1758144641030,-1335.635557,0.00021858,2]
[385945055,1758144641039,-1335.635557,0.00021858,2]
[385945056,1758144641048,-151.0,0.00021858,2]
[385945057,1758144641057,-151.0,0.00021858,2]
[385945058,1758144641066,-194.774007,0.00021858,2]
[385945059,1758144641075,-2392.0,0.00021859,2]
[385945060,1758144641084,-151.77,0.00021859,2]
[385945061,1758144641093,-151.77,0.00021859,2]
[385945062,1758144641101,-151.77,0.00021859,2]
[385945063,1758144641110,-151.0,0.00021864,2]
[385945064,1758144641119,-151.0,0.00021864,2]
[385945065,1758144641128,-151.0,0.00021864,2]
[385945066,1758144641137,-151.0,0.00021864,2]
[385945067,1758144641147,-151.0,0.00021864,2]
[385945068,1758144641155,-759.248668,0.00021864,2]
[385945069,1758144641164,-759.248668,0.00021864,2]
[385945070,1758144641174,-759.248668,0.00021864,2]
[385945071,1758144641184,-759.248668,0.00021864,2]
[385945072,1758144641193,-178.511156,0.00021864,2]
[385945073,1758144641202,-151.0,0.00021865,2]
[385945074,1758144641211,-151.0,0.00021865,2]
[385945075,1758144641220,-151.0,0.00021865,2]
[385945076,1758144641230,-151.0,0.00021865,2]
[385945077,1758144641238,-151.0,0.00021865,2]
[385945078,1758144641247,-157.695635,0.00021865,2]
[385945079,1758144641259,-151.0,0.00021865,2]
[385945080,1758144641268,-198.197748,0.00021865,2]
[385945081,1758144641277,-151.0,0.00021865,2]
[385945082,1758144641286,-159.179813,0.00021865,2]
[385945083,1758144641295,-151.0,0.00021865,2]
[385945084,1758144641304,-151.0,0.00021865,2]
[385945085,1758144641312,-166.891424,0.00021865,2]
[385945086,1758144641322,-168.0,0.00021866,2]
[385945087,1758144641331,-151.0,0.00021866,2]
[385945088,1758144641340,-151.0,0.00021866,2]
[385945089,1758144641349,-151.0,0.00021866,2]
[385945090,1758144641358,-151.0,0.00021866,2]
[385945091,1758144641368,-151.0,0.00021866,2]
[385945092,1758144641377,-151.0,0.00021866,2]
[385945093,1758144641386,-151.0,0.00021866,2]
[385945094,1758144641395,-151.0,0.00021866,2]
[385945095,1758144641405,-301.563692,0.00021866,2]
[385945096,1758144641414,-151.923941,0.00021866,2]
[385945097,1758144641423,-151.0,0.00021866,2]
[385945098,1758144641432,-151.0,0.00021866,2]
[385945099,1758144641442,-218.459396,0.00021866,2]
[385945100,1758144641451,-151.0,0.00021866,2]
[385945101,1758144641460,-151.0,0.00021866,2]
[385945102,1758144641469,-151.0,0.00021866,2]
[385945103,1758144641479,-151.0,0.00021866,2]
[385945104,1758144641488,-151.0,0.00021866,2]
[385945105,1758144641497,-151.0,0.00021866,2]
[385945106,1758144641506,-151.0,0.00021866,2]
[385945107,1758144641515,-151.0,0.00021866,2]
[385945108,1758144641523,-151.0,0.00021866,2]
[385945109,1758144641532,-151.0,0.00021866,2]
[385945110,1758144641541,-151.0,0.00021866,2]
[385945111,1758144641551,-151.0,0.00021866,2]
[385945112,1758144641559,-151.0,0.00021866,2]
[385945113,1758144641568,-151.0,0.00021866,2]
[385945114,1758144641577,-759.248668,0.00021866,2]
[385945115,1758144641586,-759.248668,0.00021866,2]
[385945116,1758144641594,-759.248668,0.00021866,2]
[385945117,1758144641603,-759.248668,0.00021866,2]
[385945118,1758144641614,-2109.093577,0.00021866,2]
[385945119,1758144641624,-159.184121,0.00021866,2]
[385945120,1758144641633,-237.538,0.00021866,2]
[385945121,1758144641642,-2109.093577,0.00021866,2]
[385945122,1758144641652,-237.538,0.00021866,2]
[385945123,1758144641661,-2109.093577,0.00021866,2]
[385945124,1758144641670,-237.538,0.00021866,2]
[385945125,1758144641679,-2109.093577,0.00021866,2]
[385945126,1758144641688,-237.538,0.00021866,2]
[385945127,1758144641697,-1089.069864,0.00021866,2]
[385945128,1758144641706,-1089.069864,0.00021866,2]
[385945129,1758144641715,-1089.069864,0.00021866,2]
[385945130,1758144641724,-1089.069864,0.00021866,2]
[385945131,1758144641733,-1335.635557,0.00021866,2]
[385945132,1758144641742,-1335.635557,0.00021866,2]
[385945133,1758144641751,-1335.635557,0.00021866,2]
[385945134,1758144641760,-1335.635557,0.00021866,2]
[385945135,1758144641769,-151.0,0.00021866,2]
[385945136,1758144641778,-151.0,0.00021866,2]
[385945137,1758144641787,-368571.52354697,0.00021867,3]
[385945138,1758144641798,-424.10729223,0.00021867,3]
[385945139,1758144641809,-738.512065,0.00021867,3]
[385945140,1758144641820,-1177.2869962,0.00021867,3]
[385945141,1758144642041,-123705.84913415,0.00021867,3]
[385945160,1758144643649,-500.0,0.00021767,2]
[385945161,1758144643659,-662.8541875,0.00021767,2]
[385945162,1758144643668,-662.8541875,0.00021767,2]
[385945163,1758144643677,-191.31797821,0.00021767,2]
[385945164,1758144643686,-662.8541875,0.00021767,2]
[385945165,1758144643696,-662.8541875,0.00021767,2]
[385945166,1758144643709,-662.8541875,0.00021767,2]
[385945167,1758144643718,-662.8541875,0.00021767,2]
[385945168,1758144643727,-662.8541875,0.00021767,2]
[385945169,1758144643737,-662.8541875,0.00021767,2]
[385945170,1758144643746,-662.8541875,0.00021767,2]
[385945171,1758144643755,-662.8541875,0.00021767,2]
[385945172,1758144643765,-662.8541875,0.00021767,2]
[385945173,1758144643774,-662.8541875,0.00021767,2]
[385945174,1758144643783,-662.8541875,0.00021767,2]
[385945175,1758144643793,-662.8541875,0.00021767,2]
[385945176,1758144643802,-662.8541875,0.00021767,2]
[385945177,1758144643811,-662.8541875,0.00021767,2]
[385945178,1758144643820,-662.8541875,0.00021767,2]
[385945179,1758144643829,-662.8541875,0.00021767,2]
[385945180,1758144643838,-662.8541875,0.00021767,2]
[385945181,1758144643847,-662.8541875,0.00021767,2]
[385945182,1758144643857,-662.8541875,0.00021767,2]
[385945183,1758144643866,-662.8541875,0.00021767,2]
[385945184,1758144643876,-662.8541875,0.00021767,2]
[385945185,1758144643885,-662.8541875,0.00021767,2]
[385945186,1758144643894,-662.8541875,0.00021767,2]
[385945187,1758144643903,-662.8541875,0.00021767,2]
[385945188,1758144643912,-662.8541875,0.00021767,2]
[385945189,1758144643922,-662.8541875,0.00021767,2]
[385945190,1758144643931,-662.8541875,0.00021767,2]
[385945191,1758144643940,-251.10492826,0.00021857,2]
[385945192,1758144643950,-375.07771681,0.00021857,2]
[385945193,1758144643959,-500.0,0.00021857,2]
[385945194,1758144643969,-174.81011598,0.00021857,2]
[385945195,1758144643978,-500.0,0.00021857,2]
[385945196,1758144643988,-189.55059948,0.00021857,2]
[385945197,1758144643998,-500.0,0.00021857,2]
[385945198,1758144644008,-475851.15786076,0.00021867,3]
[385945199,1758144644026,-662.8541875,0.00021767,2]
[385945200,1758144644035,-28344.05336341,0.00021867,3]
[385945205,1758144731499,5000.0,0.0002,2]
[385945207,1758144803140,500.0,0.00030114,120]
[385945222,1758145507185,150.0,0.00019948,2]
[385945223,1758145507257,150.0,0.00019948,2]
[385945224,1758145507288,150.0,0.00019948,2]
[385945225,1758145509502,150.0,0.00019948,2]
[385945226,1758145514219,150.0,0.00019948,2]
[385945227,1758145520852,150.0,0.00019948,2]
[385945228,1758145520936,150.0,0.00019948,2]
[385945229,1758145527276,150.0,0.00019948,2]
[385945230,1758145527353,150.0,0.00019948,2]
[385945231,1758145527405,150.0,0.00019948,2]
[385945237,1758145831620,-150.0,0.00020242,2]
[385945238,1758145831632,-456.9,0.00020261,2]
[385945239,1758145831645,-4535.96,0.00020261,2]
[385945240,1758145831654,-250.0,0.00020388,2]
[385945241,1758145831665,-156.27,0.00020388,2]
[385945242,1758145831675,-280.0,0.000204,2]
[385945243,1758145831685,-200.0,0.00020472,2]
[385945244,1758145831697,-168.0,0.00020485,2]
[385945245,1758145831708,-164.45,0.00020693,2]
[385945246,1758145831718,-283.96,0.00020792,2]
[385945247,1758145831729,-184.35,0.00020886,2]
[385945248,1758145831738,-300.0,0.00020892,2]
[385945249,1758145831748,-1200.0,0.00020892,2]
[385945250,1758145831757,-500.0,0.00020892,2]
[385945251,1758145831766,-1003.49590001,0.00020893,2]
[385945252,1758145831776,-35389.61,0.00020894,2]
[385945253,1758145831785,-151.0,0.00020918,2]
[385945254,1758145831794,-670.58624095,0.00020918,2]
[385945255,1758145831803,-248.71531821,0.00020918,2]
[385945256,1758145831812,-8565.75555911,0.00020918,2]
[385945257,1758145831821,-200.0,0.00020918,2]
[385945258,1758145831831,-200.0,0.00020918,2]
[385945259,1758145831841,-200.0,0.00020918,2]
[385945260,1758145831850,-200.0,0.00020918,2]
[385945261,1758145831860,-500.0,0.00020918,2]
[385945262,1758145831870,-500.0,0.00020918,2]
[385945263,1758145831882,-500.0,0.00020918,2]
[385945264,1758145831891,-177.67070657,0.00020918,2]
[385945265,1758145831901,-3363.0,0.00020973,2]
[385945266,1758145831911,-8882.6885148,0.00020973,2]
[385945267,1758145831920,-9211.34798985,0.00021028,2]
[385945268,1758145831930,-5888.0,0.00021035,2]
[385945269,1758145831940,-9552.16786547,0.00021083,2]
[385945270,1758145831948,-167.94,0.00021101,2]